[Event "ARM National Team Qual 2021"]
[Site "Yerevan"]
[Date "2021.03.24"]
[Round "3.1"]
[White "Petrosyan, Manuel"]
[Black "Martirosyan, Haik M."]
[Result "*"]
[ECO "E32"]
[WhiteElo "2628"]
[BlackElo "2622"]
[Annotator "RC"]
[PlyCount "120"]
[EventDate "2021.03.21"]
[EventType "tourn"]
[EventCountry "ARM"]
[SourceTitle "playchess.com"]
[Source "ChessBase"]
[SourceQuality "1"]
[TimeControl "40/5400+30:1800+30"]

1. d4 {[%emt 0:00:34]} Nf6 {[%emt 0:00:00]} 2. c4 {[%emt 0:00:09]} e6 {[%emt 0:00:00]} 3. Nc3 {[%emt 0:00:06]} Bb4 {[%emt 0:00:00]} 4. Qc2 {[%emt 0:00:08]} O-O {[%emt 0:00:50]} 5. e4 {[%emt 0:00:32]} c5 {[%emt 0:04:21]} 6. e5 {[%emt 0:08:25]} cxd4 {[%emt 0:14:30]} 7. a3 {[%emt 0:02:08]} Bxc3+ {[%emt 0:10:46]} 8. bxc3 {[%emt 0:00:14]} Ne8 {[%emt 0:09:50]} 9. cxd4 {[%emt 0:02:12]} b5 {[%emt 0:08:17]} 10. Bd3 {[%emt 0:18:48]} f5 {[%emt 0:01:38]} 11. cxb5 {[%emt 0:04:06]} a6 {[%emt 0:01:09]} 12. b6 {[%emt 0:19:12]} Qxb6 {[%emt 0:06:00]} 13. Rb1 {[%emt 0:00:24]} Qc6 {[%emt 0:05:18]} 14. Ne2 {[%emt 0:00:17]} a5 {[%emt 0:02:49]} 15. d5 {[%emt 0:02:02]} Qxc2 {[%emt 0:04:14]} 16. Bxc2 {[%emt 0:01:03]} exd5 {[%emt 0:00:14]} 17. Nd4 {[%emt 0:03:22]} Nc6 {[%emt 0:02:09]} 18. Nxf5 {[%emt 0:04:18]} Ba6 {[%emt 0:02:35]} 19. f4 {[%emt 0:02:25]} Nc7 {[%emt 0:00:47]} 20. g3 {[%emt 0:08:31]} Ne6 {[%emt 0:01:15]} 21. Bb2 {[%emt 0:02:35]} d4 {[%emt 0:10:19]} 22. Nd6 {[%emt 0:00:34]} Rab8 {[%emt 0:01:43]} 23. Be4 {[%emt 0:05:41]} Rb3 {[%emt 0:00:41]} 24. Bc1 {[%emt 0:01:02]} Rc3 {[%emt 0:01:39]} 25. Bd2 {[%emt 0:04:02]} Rxa3 {[%emt 0:00:52]} 26. Nb5 {[%emt 0:00:05]} Ra4 {[%emt 0:02:06]} 27. Bc2 {[%emt 0:01:03]} Rc4 {[%emt 0:00:59]} 28. Bd3 {[%emt 0:00:49]} Rc5 {[%emt 0:00:06]} 29. Ke2 {[%emt 0:00:47]} g5 {[%emt 0:00:23]} 30. Rhg1 {[%emt 0:06:12]} Kh8 {[%emt 0:00:18]} 31. Rgf1 {[%emt 0:01:58]} gxf4 {[%emt 0:00:06]} 32. gxf4 {[%emt 0:00:04]} Nb4 {[%emt 0:00:55]} 33. Bxb4 {[%emt 0:00:02]} axb4 {[%emt 0:00:09]} 34. Rxb4 {[%emt 0:00:38]} Rxf4 {[%emt 0:04:03]} 35. Kd2 {[%emt 0:00:10]} Rxe5 {[%emt 0:00:40]} 36. Nd6 {[%emt 0:00:51]} Bxd3 {[%emt 0:03:21]} 37. Rxf4 {[%emt 0:00:30]} Re2+ {[%emt 0:00:04]} 38. Kxd3 {[%emt 0:00:05]} Nxf4+ {[%emt 0:00:06]} 39. Kxd4 {[%emt 0:00:29]} Rxh2 {[%emt 0:00:52]} 40. Nf5 {[%emt 0:01:12]} Kg8 {[%emt 0:00:00]} 41. Rb7 {[%emt 0:05:10]} Ng6 {[%emt 0:03:17]} 42. Ke3 {[%emt 0:03:24]} Kf7 {[%emt 0:01:09]} 43. Nd4 {[%emt 0:03:47]} Rh3+ {[%emt 0:04:29]} 44. Ke4 {[%emt 0:02:31]} Rh4+ {[%emt 0:00:06]} 45. Ke3 {[%emt 0:00:55]} Ne5 {[%emt 0:00:33]} 46. Ne2 {[%emt 0:00:36]} Rg4 {[%emt 0:02:58]} 47. Nf4 {[%emt 0:02:29]} Kf6 {[%emt 0:00:50]} 48. Rb8 {[%emt 0:00:18]} Ng6 {[%emt 0:00:56]} 49. Nd5+ {[%emt 0:01:29]} Ke6 {[%emt 0:01:07]} 50. Nc3 {[%emt 0:01:28]} h5 {[%emt 0:01:37]} 51. Ne4 {[%emt 0:02:02]} d5 {[%emt 0:01:29]} 52. Nc5+ {[%emt 0:02:16]} Kd6 {[%emt 0:01:14]} 53. Nd3 {[%emt 0:00:24]} Re4+ {[%emt 0:01:28]} 54. Kd2 {[%emt 0:00:44]} Nf4 {[%emt 0:01:02]} 55. Nxf4 {[%emt 0:02:35]} Rxf4 {[%emt 0:00:06]} 56. Rh8 {[%emt 0:00:09]} h4 {[%emt 0:01:37]} 57. Ke3 {[%emt 0:02:13]} Re4+ {[%emt 0:00:47]} 58. Kd3 {[%emt 0:00:05]} Ra4 {[%emt 0:00:10]} 59. Ke3 {[%emt 0:01:33]} h3 {[%emt 0:02:57]} 60. Rxh3 {[%emt 0:00:11]} d4+ {[%emt 0:04:29]} *

[Event "ARM National Team Qual 2021"]
[Site "Yerevan"]
[Date "2021.03.27"]
[Round "6.1"]
[White "Martirosyan, Haik M."]
[Black "Petrosyan, Manuel"]
[Result "1/2-1/2"]
[ECO "D39"]
[WhiteElo "2622"]
[BlackElo "2628"]
[Annotator "ChessBase"]
[PlyCount "72"]
[EventDate "2021.03.21"]
[EventType "tourn"]
[EventCountry "ARM"]
[SourceTitle "playchess.com"]
[Source "ChessBase"]
[SourceQuality "1"]
[TimeControl "40/5400+30:1800+30"]

1. d4 {[%emt 0:00:00]} Nf6 {[%emt 0:00:11]} 2. Nf3 {[%emt 0:00:00]} d5 {[%emt 0:00:52]} 3. c4 {[%emt 0:00:00]} e6 {[%emt 0:00:13]} 4. Nc3 {[%emt 0:00:00]} Bb4 {[%emt 0:00:23]} 5. Bg5 {[%emt 0:00:24]} dxc4 {[%emt 0:00:48]} 6. e4 {[%emt 0:00:20]} c5 {[%emt 0:00:29]} 7. Bxc4 {[%emt 0:01:04]} cxd4 {[%emt 0:00:18]} 8. Nxd4 {[%emt 0:00:18]} Qa5 {[%emt 0:02:36]} 9. Bd2 {[%emt 0:01:22]} Qc5 {[%emt 0:00:23]} 10. Bb5+ {[%emt 0:00:52]} Bd7 {[%emt 0:00:13]} 11. Nb3 {[%emt 0:01:16]} Qc7 {[%emt 0:00:25]} 12. O-O {[%emt 0:04:23]} O-O {[%emt 0:01:14]} 13. Bd3 {[%emt 0:01:38]} Nc6 {[%emt 0:02:50]} 14. f4 {[%emt 0:11:14]} e5 {[%emt 0:13:35]} 15. Nd5 {[%emt 0:05:18]} Nxd5 {[%emt 0:02:48]} 16. exd5 {[%emt 0:00:07]} Bxd2 {[%emt 0:08:23]} 17. Qxd2 {[%emt 0:00:35]} Qb6+ {[%emt 0:04:52]} 18. Rf2 {[%emt 0:01:32]} Nb4 {[%emt 0:01:11]} 19. fxe5 {[%emt 0:01:22]} Nxd5 {[%emt 0:00:49]} 20. Bxh7+ {[%emt 0:02:11]} Kxh7 {[%emt 0:01:45]} 21. Qxd5 {[%emt 0:00:10]} Be6 {[%emt 0:00:48]} 22. Qe4+ {[%emt 0:03:49]} Kg8 {[%emt 0:00:17]} 23. Nd4 {[%emt 0:02:10]} Rad8 {[%emt 0:03:45]} 24. Nf3 {[%emt 0:14:22]} f6 {[%emt 0:14:19]} 25. exf6 {[%emt 0:04:14]} Rxf6 {[%emt 0:00:22]} 26. Qe2 {[%emt 0:02:04]} Bd5 {[%emt 0:04:57]} 27. Kh1 {[%emt 0:01:22]} Re6 {[%emt 0:02:24]} 28. Qf1 {[%emt 0:01:02]} Rde8 {[%emt 0:03:23]} 29. b3 {[%emt 0:01:33]} Qa5 {[%emt 0:03:06]} 30. Qd3 {[%emt 0:03:54]} Re3 {[%emt 0:07:54]} 31. Qd2 {[%emt 0:01:49]} Qxd2 {[%emt 0:03:36]} 32. Rxd2 {[%emt 0:01:08]} Bxf3 {[%emt 0:00:26]} 33. gxf3 {[%emt 0:00:07]} Rxf3 {[%emt 0:00:08]} 34. Rc1 {[%emt 0:00:45]} Re7 {[%emt 0:02:11]} 35. Kg2 {[%emt 0:00:58]} Rf6 {[%emt 0:00:37]} 36. Rc3 {[%emt 0:00:25]} Kf7 {[%emt 0:01:04]} 1/2-1/2